bitfinex/quotes_BTCUSD_20220111
["timestamp","ask_amount","ask_price","bid_price","bid_amount"]
[1641906553001,0.0008563,41873.0,41866.0,0.00074521]
[1641906553407,0.011,41870.0,41866.0,0.01074521]
[1641906553602,0.011,41870.0,41867.0,0.374433]
[1641906554203,0.011,41870.0,41866.0,0.01074521]
[1641906554404,0.011,41870.0,41867.0,0.374433]
[1641906554604,0.00085631,41873.0,41867.0,0.374433]
[1641906554803,0.00085631,41873.0,41866.0,0.00074519]
[1641906555451,0.06056931,41873.0,41866.0,0.01274519]
[1641906555852,0.06056931,41873.0,41867.0,0.00074518]
[1641906555853,0.10347225,41873.0,41867.0,0.00074518]
[1641906556055,0.15347225,41873.0,41867.0,0.00074518]
[1641906557053,0.14329318,41873.0,41867.0,0.00058821]
[1641906557253,0.0412597,41872.0,41867.0,0.01058821]
[1641906557454,0.059718,41871.0,41867.0,0.01058821]
[1641906557853,0.10886814,41871.0,41867.0,0.01058821]
[1641906558054,0.08591164,41870.0,41867.0,0.01058821]
[1641906558255,0.04554858,41869.0,41867.0,0.01058822]
[1641906558454,0.04554858,41869.0,41868.0,0.374433]
[1641906559403,0.06054858,41869.0,41868.0,0.382433]
[1641906559803,0.015,41869.0,41868.0,0.382433]
[1641906560703,0.09180875,41870.0,41868.0,0.374433]
[1641906560904,0.03921474,41869.0,41868.0,0.374433]
[1641906561105,0.06042781,41873.0,41866.0,0.00062142]
[1641906561106,0.04743437,41868.0,41866.0,0.00062142]
[1641906561410,0.059717,41871.0,41868.0,0.008]
[1641906561411,0.016,41870.0,41868.0,0.008]
[1641906561605,0.066,41870.0,41868.0,0.008]
[1641906562658,0.05,41870.0,41865.0,0.65795291]
[1641906562858,0.14711864,41873.0,41866.0,0.374433]
[1641906563057,0.05071482,41873.0,41867.0,0.00062141]
[1641906563256,0.00071482,41873.0,41867.0,0.00062141]
[1641906563456,0.00071482,41873.0,41868.0,0.374433]
[1641906563657,0.00071482,41873.0,41868.0,0.474433]
[1641906564257,0.00071482,41873.0,41869.0,0.33384359]
[1641906564258,0.00070692,41873.0,41869.0,0.33384359]
[1641906564659,0.00070692,41873.0,41869.0,0.33005528]
[1641906565056,0.00070692,41873.0,41870.0,0.374433]
[1641906566058,0.00070692,41873.0,41872.0,0.60845145]
[1641906566708,0.00070691,41874.0,41872.0,0.60845145]
[1641906567404,0.01270691,41874.0,41872.0,0.61645145]
[1641906567804,0.012,41874.0,41872.0,0.61645145]
[1641906568404,0.012,41874.0,41873.0,1.45381017]
[1641906568606,0.00070857,41875.0,41873.0,1.624433]
[1641906568806,0.00070857,41875.0,41874.0,1.224433]
[1641906569005,0.00070857,41875.0,41874.0,1.324433]
[1641906569211,0.00070857,41875.0,41874.0,0.474433]
[1641906569408,0.00570857,41875.0,41874.0,0.60094654]
[1641906569808,0.00570857,41875.0,41874.0,0.59594654]
[1641906570253,0.005,41875.0,41874.0,0.59594654]
[1641906570553,0.00070856,41877.0,41874.0,1.19100356]
[1641906570852,0.00070856,41877.0,41874.0,1.90148918]
[1641906571053,0.00070856,41877.0,41874.0,1.80148918]
[1641906571252,0.00070856,41877.0,41876.0,0.60899391]
[1641906571453,0.0007082,41878.0,41876.0,0.60899391]
[1641906571652,0.00790096,41878.0,41877.0,0.32860606]
[1641906572654,0.00719276,41878.0,41877.0,0.32860606]
[1641906573357,0.01819276,41878.0,41877.0,0.33760606]
[1641906574509,0.01819276,41878.0,41877.0,0.009]
[1641906574709,0.00719276,41878.0,41874.0,0.26372045]
[1641906575106,0.00719276,41878.0,41875.0,0.374389]
[1641906575906,0.00733282,41878.0,41875.0,0.374389]
[1641906577306,0.00733282,41878.0,41875.0,0.387389]
[1641906578060,0.00733282,41878.0,41875.0,0.013]
[1641906578659,0.00733282,41878.0,41874.0,0.26372045]
[1641906578660,0.00546982,41878.0,41874.0,0.26372045]
[1641906579463,0.00546982,41878.0,41874.0,0.27772045]
[1641906579464,0.00014006,41878.0,41874.0,0.27772045]
[1641906579864,0.33750224,41882.0,41876.0,0.85]
[1641906580063,0.001,41883.0,41877.0,0.35059067]
[1641906580266,0.001,41883.0,41882.0,0.34223467]
[1641906581064,0.001,41883.0,41877.0,0.35059067]
[1641906581508,0.043,41883.0,41882.0,0.005]
[1641906582910,0.13181968,41883.0,41882.0,0.005]
[1641906583308,0.08981968,41883.0,41877.0,0.35059067]
[1641906583509,0.13081968,41883.0,41882.0,0.006]
[1641906584713,0.50520868,41883.0,41882.0,0.006]
[1641906585456,0.55420868,41883.0,41882.0,0.011]
[1641906586755,0.55420868,41883.0,41876.0,0.0012317]
[1641906586756,0.059703,41880.0,41876.0,0.0012317]
[1641906587154,0.059703,41880.0,41876.0,0.24720414]
[1641906587357,0.059703,41880.0,41876.0,0.26120414]
[1641906587562,0.059703,41880.0,41877.0,0.33001107]
[1641906587758,0.08981968,41883.0,41877.0,0.33001107]
[1641906588158,0.00070747,41880.0,41877.0,0.33001107]
[1641906588358,0.00070747,41880.0,41878.0,0.374389]
[1641906589409,0.051,41883.0,41878.0,0.387389]
[1641906589410,0.00070774,41881.0,41878.0,0.387389]
[1641906589809,0.00070774,41881.0,41878.0,0.013]
[1641906590610,0.00070773,41882.0,41877.0,0.33001107]
[1641906590812,0.00070773,41882.0,41877.0,0.38001107]
[1641906591111,0.00070773,41882.0,41877.0,0.43001107]
[1641906591313,0.00070773,41882.0,41878.0,0.374389]
[1641906592955,0.00141546,41882.0,41878.0,0.374389]
[1641906593157,0.00070773,41882.0,41878.0,0.374389]
[1641906593357,0.00070773,41882.0,41879.0,0.60899391]
[1641906593655,0.00070773,41882.0,41880.0,0.70292895]
[1641906593855,0.00070773,41882.0,41881.0,0.33060396]
[1641906594254,0.00170772,41883.0,41881.0,0.33060396]
[1641906594456,0.00170772,41883.0,41879.0,0.60899391]
[1641906594657,0.04166333,41882.0,41879.0,0.60899391]
[1641906594858,0.16338823,41883.0,41879.0,0.60899391]
[1641906595058,0.46437282,41882.0,41879.0,0.60899391]
[1641906595658,0.0977,41882.0,41879.0,0.60899391]
[1641906595858,0.059718,41880.0,41877.0,0.60899391]
[1641906596058,0.29684417,41879.0,41877.0,0.60899391]
[1641906596513,0.059709,41879.0,41871.0,0.00124092]
[1641906596713,0.059709,41879.0,41871.0,0.00062046]
[1641906597114,0.39597507,41879.0,41871.0,0.00062044]
[1641906597414,0.39597507,41879.0,41871.0,0.05062044]
[1641906597614,0.059709,41879.0,41871.0,0.05062044]
[1641906598217,0.059709,41879.0,41871.0,0.05062048]
[1641906599316,0.05971,41876.0,41871.0,0.00062048]
[1641906599516,0.35030663,41875.0,41871.0,0.06762048]
[1641906599917,0.05,41874.0,41871.0,0.06762048]
[1641906600160,0.11249,41874.0,41871.0,0.06762048]
[1641906600368,0.179162,41873.0,41871.0,0.06762048]
[1641906600560,0.36570278,41872.0,41871.0,0.067]
[1641906600759,0.36570278,41872.0,41870.0,0.0006205]
[1641906600959,0.41570278,41872.0,41870.0,0.0006205]
[1641906601161,0.35308912,41871.0,41870.0,0.0006205]
[1641906601361,0.059,41872.0,41870.0,0.0256205]
[1641906601962,0.33671625,41871.0,41870.0,0.025]
[1641906602763,0.33671625,41871.0,41869.0,0.00062053]
[1641906603165,0.39643525,41871.0,41868.0,0.50062054]
[1641906603365,0.45615725,41871.0,41868.0,0.50062054]
[1641906603568,0.05,41870.0,41869.0,0.007]
[1641906604008,0.38834628,41870.0,41869.0,0.007]
[1641906604612,0.50780135,41870.0,41869.0,0.007]
[1641906604811,0.50780135,41870.0,41868.0,0.5]
[1641906605214,0.0477,41873.0,41869.0,0.36796839]
[1641906605414,0.66663825,41880.0,41871.0,0.41394041]
[1641906605615,0.60693425,41880.0,41875.0,0.00125332]
[1641906605811,0.4089936,41879.0,41875.0,0.00125332]
[1641906606212,0.4089936,41879.0,41871.0,0.1]
[1641906606213,0.10574967,41878.0,41871.0,0.1]
[1641906606413,0.10574967,41878.0,41869.0,0.00125752]
[1641906606713,0.04579298,41877.0,41871.0,0.00062044]
[1641906606913,0.09826883,41875.0,41871.0,0.00062044]
[1641906607114,0.046798,41873.0,41871.0,0.00062044]
[1641906607314,0.04884002,41872.0,41871.0,0.00062044]
[1641906607562,0.50403262,41872.0,41871.0,0.03862044]
[1641906607757,0.45403262,41872.0,41871.0,0.038]
[1641906607961,0.05,41874.0,41871.0,0.038]
[1641906608757,0.5325533,41875.0,41870.0,0.0006205]
[1641906608961,0.5325533,41875.0,41870.0,0.00062051]
[1641906609358,0.12094003,41875.0,41870.0,0.00062051]
[1641906609558,0.12794003,41875.0,41870.0,0.04362051]
[1641906609758,0.05,41874.0,41870.0,0.04362051]
[1641906609959,0.12794003,41875.0,41870.0,0.04362051]
[1641906610765,0.12094003,41875.0,41870.0,0.00062051]
[1641906611163,0.18065203,41875.0,41870.0,0.00062051]
[1641906611409,0.05,41874.0,41870.0,0.05562051]
[1641906611606,0.05,41874.0,41871.0,0.374389]
[1641906613006,0.12094003,41875.0,41871.0,0.374389]
[1641906613413,0.006,41874.0,41871.0,0.413389]
[1641906613808,0.01319278,41874.0,41871.0,0.41400948]
[1641906615065,0.01319278,41874.0,41871.0,0.413389]
[1641906615458,0.01619278,41874.0,41871.0,0.454389]
[1641906616859,0.01619278,41874.0,41871.0,0.08]
[1641906617258,0.00719278,41874.0,41870.0,0.0006205]
[1641906617459,0.00719278,41874.0,41871.0,0.069]
[1641906617658,0.03707701,41873.0,41871.0,0.069]
[1641906618664,0.03707701,41873.0,41870.0,0.00062051]
[1641906619108,0.11190177,41874.0,41870.0,0.00062051]
[1641906619509,0.03532986,41873.0,41870.0,0.06562051]
[1641906619909,0.10018668,41872.0,41870.0,0.0656205]
[1641906620110,0.04324458,41871.0,41870.0,0.0656205]
[1641906620309,0.14335513,41872.0,41870.0,0.0656205]
[1641906620710,0.14335513,41872.0,41870.0,0.0006205]
[1641906621111,0.14335513,41872.0,41869.0,0.00062053]
[1641906621315,0.14335513,41872.0,41870.0,0.374389]
[1641906621512,0.14335513,41872.0,41870.0,0.433389]
[1641906622312,0.05,41872.0,41870.0,0.433389]
[1641906622567,0.00719278,41874.0,41870.0,0.433389]
[1641906622761,0.00719278,41874.0,41870.0,0.374389]
[1641906623364,0.00719278,41874.0,41870.0,0.3750095]
[1641906623563,0.059714,41873.0,41870.0,0.0566205]
[1641906624565,0.059714,41873.0,41870.0,0.056]
[1641906625566,0.059714,41873.0,41870.0,0.115]
[1641906626615,0.059714,41873.0,41871.0,0.374389]
[1641906626812,0.00719278,41874.0,41871.0,0.374389]
[1641906627014,0.00719278,41874.0,41869.0,0.00062051]
[1641906627212,0.00719278,41874.0,41870.0,0.374389]
[1641906628114,0.00719278,41874.0,41870.0,0.3750095]
[1641906629318,0.00719278,41874.0,41870.0,0.37563]
[1641906629518,0.01419278,41874.0,41870.0,0.4210095]
[1641906629718,0.01419278,41874.0,41871.0,0.32903458]
[1641906629920,0.01419278,41874.0,41872.0,0.374389]
[1641906630168,0.01419278,41874.0,41872.0,0.474389]
[1641906630668,0.01419278,41874.0,41872.0,0.374389]
[1641906630865,0.00719278,41874.0,41872.0,0.374389]
[1641906631065,0.00719278,41874.0,41872.0,0.474389]
[1641906631465,0.00719278,41874.0,41873.0,0.85]
[1641906631670,0.00719278,41874.0,41873.0,1.55437246]
[1641906631867,0.00719278,41874.0,41873.0,1.324389]
[1641906632065,0.00719278,41874.0,41873.0,1.66070609]
[1641906632269,0.00119278,41874.0,41873.0,1.66374378]
[1641906632467,0.00119278,41874.0,41873.0,0.474389]
[1641906633468,0.00119278,41874.0,41873.0,0.496389]
[1641906634750,0.00119278,41874.0,41873.0,0.474389]
[1641906635552,0.00119278,41874.0,41873.0,0.510389]
[1641906636753,0.00119278,41874.0,41873.0,0.374389]
[1641906636959,0.00119278,41874.0,41871.0,0.00062048]
[1641906637564,0.00119278,41874.0,41872.0,0.374389]
[1641906639263,0.00119278,41874.0,41872.0,0.70217189]
[1641906639468,0.00419278,41874.0,41872.0,0.75917189]
[1641906639663,0.00419278,41874.0,41873.0,0.32865946]
[1641906639863,0.00419278,41874.0,41873.0,0.374389]
[1641906640766,0.00119278,41874.0,41873.0,0.374389]
[1641906641610,0.00419278,41874.0,41873.0,0.427389]
[1641906642810,0.00119278,41874.0,41873.0,0.374389]
[1641906643510,0.00119278,41874.0,41873.0,0.435389]
[1641906644517,0.05,41876.0,41873.0,0.435389]
[1641906644713,0.2885077,41880.0,41874.0,0.374389]
[1641906644714,0.0007077,41880.0,41874.0,0.374389]
[1641906644912,0.0007077,41880.0,41873.0,0.061]
[1641906645363,0.0007077,41880.0,41874.0,0.30061]
[1641906645762,0.0007077,41880.0,41877.0,0.39136692]
[1641906646164,0.00141543,41880.0,41877.0,0.39136692]
[1641906646364,0.00070773,41880.0,41879.0,0.37126534]
[1641906647273,0.00070773,41880.0,41877.0,0.39136692]
[1641906647464,0.00070773,41882.0,41874.0,1.01109562]
[1641906647667,0.013,41880.0,41879.0,0.006]
[1641906648667,0.387389,41880.0,41879.0,0.006]
[1641906648914,0.387389,41880.0,41872.0,0.1]
[1641906649214,0.059706,41879.0,41872.0,0.15]
[1641906649614,0.059706,41879.0,41873.0,0.34000647]
[1641906650015,0.059706,41879.0,41873.0,0.44000647]
[1641906650215,0.059706,41879.0,41873.0,0.34000647]
[1641906651216,0.059709,41879.0,41872.0,0.022]
[1641906651418,0.10525994,41876.0,41872.0,0.022]
[1641906651620,0.10525994,41876.0,41873.0,0.026]
[1641906652672,0.04187517,41878.0,41873.0,0.026]
[1641906652871,0.04187517,41878.0,41871.0,0.00062048]
[1641906653371,0.04807104,41877.0,41871.0,0.00062048]
[1641906653570,0.3934051,41879.0,41871.0,0.00062048]
[1641906653571,0.0465826,41876.0,41871.0,0.05662048]
[1641906653973,0.0465826,41876.0,41871.0,0.05662047]
[1641906654574,0.04601413,41873.0,41871.0,0.05662047]
[1641906654774,0.04601413,41873.0,41871.0,0.00062047]
[1641906654976,0.04601413,41873.0,41871.0,0.00062048]
[1641906655576,0.04601413,41873.0,41871.0,0.04562048]
[1641906656177,0.04601413,41873.0,41871.0,0.045]
[1641906656412,0.08300966,41874.0,41871.0,0.045]
[1641906656613,0.059713,41873.0,41871.0,0.045]
[1641906656814,0.059713,41873.0,41870.0,0.00562051]
[1641906657215,0.059715,41872.0,41870.0,0.00562051]
[1641906657618,0.059713,41873.0,41871.0,0.374389]
[1641906657813,0.109713,41873.0,41870.0,0.08162051]
[1641906658014,0.059713,41873.0,41870.0,0.08162051]
[1641906658217,0.04921279,41871.0,41870.0,0.08162051]
[1641906658417,0.7308938,41871.0,41870.0,0.08162051]
[1641906658616,0.7308938,41871.0,41870.0,0.081]
[1641906658617,0.35377101,41871.0,41870.0,0.081]
[1641906658917,0.35377101,41871.0,41868.0,0.5]
[1641906658918,0.40377101,41871.0,41868.0,0.5]
[1641906659116,0.13182,41871.0,41868.0,0.5]
[1641906659315,0.0477,41870.0,41868.0,0.5]
[1641906659716,0.0477,41870.0,41868.0,0.518]
[1641906660568,0.10743,41870.0,41868.0,0.518]
[1641906660865,0.22688764,41870.0,41868.0,0.5]
[1641906661067,0.374389,41869.0,41868.0,0.5]
[1641906661267,0.424389,41869.0,41868.0,0.5]
[1641906661666,0.437389,41869.0,41868.0,0.5]
[1641906662969,0.424389,41869.0,41868.0,0.5]
[1641906663570,0.436389,41869.0,41868.0,0.5]
[1641906665013,0.424389,41869.0,41868.0,0.5]
[1641906665713,0.441389,41869.0,41868.0,0.5]
[1641906666814,0.424389,41869.0,41868.0,0.5]
[1641906667659,0.441389,41869.0,41868.0,0.5]
[1641906667865,0.391389,41869.0,41868.0,0.5]
[1641906668662,0.49433141,41869.0,41868.0,0.5]
[1641906668864,0.40870666,41869.0,41868.0,0.5]
[1641906669062,0.09499207,41870.0,41868.0,0.5]
[1641906669665,1.01512143,41869.0,41868.0,0.004]
[1641906669865,0.25,41868.0,41850.0,0.0012]
[1641906670063,0.25,41868.0,41856.0,0.84982857]
[1641906670265,0.35322029,41868.0,41856.0,0.79010957]
[1641906670467,0.04735831,41866.0,41856.0,0.79010957]
[1641906670664,0.04735831,41866.0,41857.0,0.28347287]
[1641906671066,0.90642803,41865.0,41859.0,0.46304751]
[1641906671516,0.90642803,41865.0,41859.0,0.61304751]
[1641906671517,0.96615103,41865.0,41859.0,0.61304751]
[1641906671818,1.98127246,41865.0,41860.0,0.00061497]
[1641906672117,1.92154946,41865.0,41860.0,0.00061497]
[1641906672316,1.01512143,41864.0,41860.0,0.00061497]
[1641906672917,0.95085701,41866.0,41860.0,0.00061496]
[1641906673121,0.95085701,41866.0,41860.0,0.47535661]
[1641906673518,1.01512143,41865.0,41860.0,0.62535661]
[1641906673817,1.01512143,41865.0,41860.0,0.65035661]
[1641906674217,1.01512143,41865.0,41861.0,0.00061495]
[1641906674619,0.95085701,41866.0,41861.0,0.00061495]
[1641906674817,0.04442898,41866.0,41863.0,1.05516454]
[1641906675068,0.04569541,41869.0,41863.0,1.05516454]
[1641906675263,0.04422602,41868.0,41863.0,1.05516454]
[1641906675464,0.0489593,41866.0,41864.0,0.71059955]
[1641906675666,0.04035592,41869.0,41864.0,0.71059955]
[1641906675863,0.006,41869.0,41864.0,0.71059955]
[1641906676265,0.00126829,41868.0,41864.0,0.71059955]
[1641906676467,1.02563036,41865.0,41864.0,0.71059955]
[1641906676671,1.35,41864.0,41863.0,0.016]
[1641906676869,1.35,41864.0,41842.0,0.00244573]
[1641906676870,0.10262475,41863.0,41854.0,0.81211378]
[1641906677067,0.00122355,41855.0,41854.0,0.81211378]
[1641906677267,0.15453607,41855.0,41854.0,0.81211378]
[1641906677666,0.16453607,41855.0,41848.0,0.913628]
[1641906677868,0.16453607,41855.0,41847.0,0.31353336]
[1641906678272,0.16453607,41855.0,41845.0,0.5682]
[1641906678570,0.434139,41854.0,41841.0,0.40675295]
[1641906678821,0.484139,41854.0,41844.0,0.30010125]
[1641906679022,0.40669151,41853.0,41850.0,0.00181118]
[1641906679220,0.31729745,41852.0,41850.0,0.00181118]
[1641906679420,0.36895463,41851.0,41850.0,0.00181118]
[1641906680023,0.05489845,41852.0,41850.0,0.00181118]
[1641906680222,0.05489845,41852.0,41850.0,0.0012]
[1641906680826,0.63753791,41851.0,41850.0,0.0012]
[1641906681025,0.33874474,41851.0,41850.0,0.0012]
[1641906681624,0.39774474,41851.0,41850.0,0.0012]
[1641906682023,0.77213374,41851.0,41850.0,0.0012]
[1641906682870,0.71313374,41851.0,41850.0,0.0012]
[1641906683570,0.80151374,41851.0,41850.0,0.0012]
[1641906683776,0.81051374,41851.0,41850.0,0.0012]
[1641906683968,0.81051374,41851.0,41842.0,0.00242878]
[1641906683969,0.810099,41850.0,41842.0,0.00242878]
[1641906684169,0.00124003,41844.0,41842.0,0.00242878]
[1641906684369,0.0477,41843.0,41842.0,0.00242878]
[1641906685067,0.0477,41843.0,41839.0,0.05]
[1641906685267,0.0477,41843.0,41836.0,0.001]
[1641906685972,0.34440318,41842.0,41836.0,0.001]
[1641906686169,0.0477,41841.0,41837.0,0.0006072]
[1641906687419,0.0477,41841.0,41837.0,0.00060721]
[1641906689821,0.0477,41841.0,41837.0,0.00060311]
[1641906691671,0.13574,41841.0,41837.0,0.00060311]
[1641906692072,0.05,41840.0,41837.0,0.00060311]
[1641906692872,0.14598125,41842.0,41837.0,0.00060311]
[1641906693071,0.09598125,41842.0,41837.0,0.00060311]
[1641906693274,0.05,41840.0,41837.0,0.00060311]
[1641906693473,0.14598125,41842.0,41836.0,0.00160427]
[1641906693675,0.04521325,41842.0,41836.0,0.00160427]
[1641906693924,0.05,41840.0,41836.0,0.00160427]
[1641906694320,0.04521325,41842.0,41836.0,0.00160427]
[1641906694520,0.04521325,41842.0,41837.0,0.00060426]
[1641906694824,0.10497825,41842.0,41837.0,0.00060426]
[1641906695820,0.11197825,41842.0,41837.0,0.00060425]
[1641906696925,0.0812915,41843.0,41838.0,0.32907921]
[1641906697126,0.0312915,41843.0,41838.0,0.32907921]
[1641906697765,0.0412915,41843.0,41838.0,0.32907921]
[1641906698166,0.0412915,41843.0,41838.0,0.32968313]
[1641906699172,0.0312915,41843.0,41838.0,0.32968313]
[1641906699470,0.07581253,41843.0,41838.0,0.00060392]
[1641906699667,0.03862149,41842.0,41838.0,0.00060392]
[1641906700367,0.0912915,41843.0,41838.0,0.00060392]
[1641906700567,0.75040225,41842.0,41838.0,0.00060402]
[1641906700769,0.374389,41842.0,41838.0,0.00060402]
[1641906701820,0.383389,41842.0,41838.0,0.00060402]
[1641906703020,0.374389,41842.0,41838.0,0.00060402]
[1641906703420,0.374389,41842.0,41840.0,0.32637144]
[1641906703623,0.2925,41848.0,41840.0,0.32637144]
[1641906703823,0.009,41842.0,41841.0,0.17583312]
[1641906704023,0.009,41842.0,41841.0,1.72561051]
[1641906704528,0.009,41842.0,41841.0,2.26106021]
[1641906704725,0.009,41842.0,41841.0,0.91106021]
[1641906705066,0.60360958,41849.0,41841.0,0.91106021]
[1641906705268,0.70421117,41851.0,41841.0,0.53667121]
[1641906705467,0.90503775,41852.0,41841.0,0.10122151]
[1641906705670,0.374389,41851.0,41841.0,0.00122151]
[1641906706068,0.41967358,41851.0,41840.0,0.37637144]
[1641906706368,0.09657973,41848.0,41839.0,0.00060396]
[1641906706568,0.48651511,41845.0,41844.0,0.00060386]
[1641906706771,1.22809311,41845.0,41844.0,0.00060386]
[1641906706967,1.19013049,41845.0,41844.0,0.00060386]
[1641906707171,1.24013049,41845.0,41844.0,0.00060386]
[1641906707668,1.27602086,41845.0,41844.0,0.00060386]
[1641906707968,1.28602086,41845.0,41842.0,0.0006039]
[1641906708168,0.310099,41844.0,41842.0,0.0006039]
[1641906708368,0.37710056,41843.0,41842.0,0.0006039]
[1641906708570,0.75148956,41843.0,41842.0,0.0006039]
[1641906709018,0.75148956,41843.0,41841.0,0.00060394]
[1641906709220,0.66875165,41842.0,41841.0,0.00060394]
[1641906709822,0.67675165,41842.0,41841.0,0.00060394]
[1641906710220,0.67675165,41842.0,41839.0,0.00060397]
[1641906711024,1.22561591,41840.0,41839.0,0.00060397]
[1641906711322,1.84327939,41840.0,41839.0,0.00060397]
[1641906711521,0.00126857,41839.0,41838.0,0.00060399]
[1641906711721,2.06581586,41839.0,41838.0,0.00060399]
[1641906712123,1.26581586,41839.0,41838.0,0.00060399]
[1641906712574,1.26581586,41839.0,41836.0,0.00160404]
[1641906712770,0.974389,41837.0,41836.0,0.00160404]
[1641906712969,0.82995318,41837.0,41836.0,0.00160404]
[1641906713772,0.83995318,41837.0,41836.0,0.00160404]
[1641906714373,0.83995318,41837.0,41836.0,0.001]
[1641906715174,0.82995318,41837.0,41836.0,0.001]
[1641906715375,0.374389,41837.0,41836.0,0.001]
[1641906715776,0.383389,41837.0,41836.0,0.001]
[1641906716818,0.78348553,41837.0,41836.0,0.001]
[1641906717017,0.77448553,41837.0,41836.0,0.001]
[1641906717820,0.78448553,41837.0,41836.0,0.001]
[1641906719123,0.77448553,41837.0,41836.0,0.001]
[1641906719521,0.374389,41837.0,41836.0,0.001]
[1641906719720,0.059768,41841.0,41836.0,0.001]
[1641906719721,0.37242068,41841.0,41836.0,0.001]
[1641906719920,0.01,41837.0,41836.0,0.001]
[1641906720575,0.01,41837.0,41836.0,0.27982396]
[1641906721174,0.05,41840.0,41836.0,0.001]
[1641906721372,0.374389,41839.0,41836.0,0.001]
[1641906721773,0.33675181,41838.0,41836.0,0.001]
[1641906721974,0.38675181,41838.0,41836.0,0.001]
[1641906722374,0.05,41838.0,41836.0,0.001]
[1641906722575,0.01,41839.0,41836.0,0.001]
[1641906723175,0.33318127,41840.0,41836.0,0.001]
[1641906723375,0.059765,41841.0,41836.0,0.001]
[1641906723818,0.374389,41840.0,41836.0,0.001]
[1641906724520,0.70795476,41840.0,41836.0,0.00160403]
[1641906725722,0.70795476,41840.0,41836.0,0.00220806]
[1641906725925,0.71695476,41840.0,41836.0,0.00160403]
[1641906726924,0.76695476,41840.0,41836.0,0.00160404]
[1641906727125,0.76462941,41840.0,41836.0,0.00160404]
[1641906727324,0.88417441,41840.0,41836.0,0.00160404]
[1641906727976,0.89417441,41840.0,41836.0,0.00160404]
[1641906728372,0.553934,41840.0,41836.0,0.00160404]
[1641906728571,0.88714362,41840.0,41836.0,0.00160404]
[1641906728771,1.03535302,41840.0,41836.0,0.00160404]
[1641906728973,0.05977,41838.0,41836.0,0.00160404]
[1641906729273,0.69889488,41837.0,41836.0,0.00160404]
[1641906729576,0.65591225,41837.0,41836.0,0.00160404]
[1641906729773,0.31729847,41837.0,41836.0,0.00160404]
[1641906729974,0.32629847,41837.0,41836.0,0.33617394]
[1641906730377,0.01619947,41837.0,41836.0,0.33617394]
[1641906730677,0.01619947,41837.0,41836.0,0.3355699]
[1641906731074,0.00719947,41837.0,41836.0,0.3355699]
[1641906731322,0.00219947,41837.0,41836.0,0.3355699]
[1641906731922,0.01219947,41837.0,41836.0,0.3355699]
[1641906732125,0.01219947,41837.0,41836.0,0.7099589]
[1641906732326,0.01219947,41837.0,41836.0,0.3355699]
[1641906732524,0.01219947,41837.0,41836.0,0.001]
[1641906733124,0.00219947,41837.0,41836.0,0.001]
[1641906733924,0.01219947,41837.0,41836.0,0.034]
[1641906734325,0.38658847,41837.0,41836.0,0.034]
[1641906734526,0.74993006,41837.0,41836.0,0.034]
[1641906735174,0.73993006,41837.0,41834.0,0.00160407]
[1641906735776,0.26215118,41835.0,41834.0,0.00160407]
[1641906735978,0.67552679,41835.0,41834.0,0.02360407]
[1641906736372,0.35,41834.0,41833.0,0.001]
[1641906736574,1.25477957,41834.0,41833.0,0.001]
[1641906736775,0.86079223,41833.0,41831.0,0.00160411]
[1641906736975,0.86079223,41833.0,41828.0,0.001]
[1641906736976,0.30013847,41831.0,41828.0,0.001]
[1641906737176,0.77561801,41830.0,41828.0,0.001]
[1641906737379,0.82561801,41830.0,41828.0,0.001]
[1641906737577,0.05979,41828.0,41818.0,0.2936]
[1641906737778,0.05979,41825.0,41817.0,1.1796]
[1641906737979,0.35395057,41824.0,41814.0,0.00124119]
[1641906738179,0.05,41823.0,41814.0,0.00124119]
[1641906738582,0.05,41823.0,41814.0,0.30598583]
[1641906739821,0.05,41823.0,41814.0,0.00124119]
[1641906740022,0.05,41823.0,41812.0,0.009567]
[1641906740223,0.0977,41823.0,41812.0,0.009567]
[1641906740422,0.059795,41821.0,41812.0,0.009567]
[1641906740624,0.73194061,41820.0,41809.0,1.01413886]
[1641906740823,0.059802,41819.0,41809.0,0.91413886]
[1641906741023,0.0477,41818.0,41809.0,1.16893597]
[1641906741228,0.33847493,41817.0,41809.0,1.16893597]
[1641906741425,0.33847493,41817.0,41812.0,0.00069783]
[1641906742028,0.34647493,41817.0,41812.0,0.00069783]
[1641906742674,0.02859401,41814.0,41812.0,0.00069783]
[1641906742971,0.03579733,41814.0,41812.0,0.00069783]
[1641906743973,0.04379733,41814.0,41811.0,0.00069787]
[1641906745175,0.03579733,41814.0,41812.0,0.374389]
[1641906745376,0.00121756,41820.0,41812.0,0.374389]
[1641906745377,0.00121756,41820.0,41813.0,1.28003306]
[1641906745575,0.5935,41826.0,41813.0,1.38003306]
[1641906745576,0.00124389,41826.0,41813.0,1.38003306]
[1641906745775,0.00124389,41826.0,41820.0,0.28716104]
[1641906745976,0.60360958,41827.0,41823.0,0.34257652]
[1641906746181,0.00073917,41828.0,41823.0,0.34257652]
[1641906746428,0.00068306,41828.0,41823.0,0.34257652]
[1641906746831,0.374389,41827.0,41823.0,0.34257652]
[1641906747222,0.00068306,41828.0,41823.0,0.34257652]
[1641906747422,0.374389,41827.0,41823.0,0.34313167]
[1641906747624,0.00068314,41828.0,41823.0,0.00055515]
[1641906747825,0.374389,41827.0,41823.0,0.00055515]
[1641906748026,0.388389,41827.0,41823.0,0.00655515]
[1641906748529,0.014,41827.0,41825.0,0.32042941]
[1641906749127,0.00070236,41828.0,41825.0,0.32042941]
[1641906749330,0.00070236,41828.0,41826.0,0.34449492]
[1641906749529,0.00070236,41828.0,41827.0,0.91332821]
[1641906749729,0.00070236,41828.0,41827.0,1.28946578]
[1641906749928,0.015,41828.0,41827.0,1.28946578]
[1641906750373,0.015,41828.0,41827.0,0.63946578]
[1641906750772,0.015,41828.0,41827.0,1.01385478]
[1641906751775,0.00071839,41830.0,41827.0,1.01385478]
[1641906751975,0.00071839,41830.0,41828.0,0.374389]
[1641906752177,0.00143285,41830.0,41829.0,0.68166826]
[1641906752378,0.00071446,41830.0,41829.0,1.05605726]
[1641906752677,0.00071446,41830.0,41829.0,0.70605726]
[1641906753277,0.00071446,41830.0,41824.0,0.0005875]
[1641906753476,0.00120769,41831.0,41824.0,0.00057831]
[1641906753677,0.03608269,41831.0,41824.0,0.00057831]
[1641906753923,0.03608269,41831.0,41824.0,0.04357831]
[1641906754127,0.00120769,41831.0,41824.0,0.04357831]